fUSD/lending_fUSD_20240119
["ID","MTS","AMOUNT","RATE_DAILY","PERIOD"]
[312208320,1705685458123,-500.0,0.00025479,2]
[312208321,1705685458132,-500.0,0.00025479,2]
[312208322,1705685458142,-500.0,0.00025479,2]
[312208323,1705685458151,-500.0,0.00025479,2]
[312208324,1705685458161,-330.13,0.00025479,2]
[312208325,1705685458170,-500.0,0.00025479,2]
[312208326,1705685458180,-223.58,0.00025479,2]
[312208327,1705685458191,-500.0,0.00025479,2]
[312208328,1705685458201,-361.32,0.00025479,2]
[312208329,1705685458211,-500.0,0.00025479,2]
[312208330,1705685458222,-500.0,0.00025479,2]
[312208331,1705685458231,-500.0,0.00025479,2]
[312208332,1705685458241,-500.0,0.00025479,2]
[312208333,1705685458251,-500.0,0.00025479,2]
[312208334,1705685458261,-500.0,0.00025479,2]
[312208335,1705685458271,-331.04,0.00025479,2]
[312208336,1705685458280,-500.0,0.00025479,2]
[312208337,1705685458290,-500.0,0.00025479,2]
[312208338,1705685458299,-327.78,0.00025479,2]
[312208339,1705685458309,-500.0,0.00025479,2]
[312208340,1705685458318,-536.72506807,0.00025479,2]
[312208341,1705685458327,-121.41984733,0.00025479,2]
[312208342,1705685458340,-378.58015267,0.00025479,2]
[312208343,1705685458349,-500.0,0.00025479,2]
[312208344,1705685458359,-361.27,0.00025479,2]
[312208345,1705685458368,-91.20449763,0.00025479,2]
[312208346,1705685458380,-408.79550237,0.00025479,2]
[312208347,1705685458390,-337.92,0.00025479,2]
[312208348,1705685458399,-500.0,0.00025479,2]
[312208349,1705685458408,-400.83,0.00025479,2]
[312208350,1705685458417,-1854.09,0.00025479,2]
[312208351,1705685458426,-500.0,0.00025479,2]
[312208352,1705685458436,-528.2,0.00025479,2]
[312208353,1705685458447,-500.0,0.00025479,2]
[312208354,1705685458458,-500.0,0.00025479,2]
[312208355,1705685458467,-554.77,0.00025479,2]
[312208356,1705685458476,-500.0,0.00025479,2]
[312208357,1705685458485,-500.0,0.00025479,2]
[312208358,1705685458495,-335.31,0.00025479,2]
[312208359,1705685458504,-500.0,0.00025479,2]
[312208360,1705685458514,-500.0,0.00025479,2]
[312208361,1705685458524,-647.03,0.00025479,2]
[312208362,1705685458533,-257.52,0.00025479,2]
[312208363,1705685458548,-500.0,0.00025479,2]
[312208364,1705685458558,-194.13,0.00025479,2]
[312208365,1705685458567,-500.0,0.00025479,2]
[312208366,1705685458576,-415.69,0.00025479,2]
[312208367,1705685458585,-500.0,0.00025479,2]
[312208368,1705685458596,-500.0,0.00025479,2]
[312208369,1705685458610,-500.0,0.00025479,2]
[312208370,1705685458619,-500.0,0.00025479,2]
[312208371,1705685458629,-500.0,0.00025479,2]
[312208372,1705685458639,-500.0,0.00025479,2]
[312208373,1705685458648,-500.0,0.00025479,2]
[312208374,1705685458658,-539.99,0.00025479,2]
[312208375,1705685458668,-664.45,0.00025479,2]
[312208376,1705685458679,-301.2,0.00025479,2]
[312208377,1705685458689,-500.0,0.00025479,2]
[312208378,1705685458698,-500.0,0.00025479,2]
[312208379,1705685458709,-266.30120513,0.00025479,2]
[312208380,1705685458723,-323.34879487,0.00025479,2]
[312208381,1705685458734,-2378.86,0.00025479,2]
[312208382,1705685458743,-690.28,0.00025479,2]
[312208383,1705685458752,-500.0,0.00025479,2]
[312208384,1705685458763,-500.0,0.00025479,2]
[312208385,1705685458771,-608.87,0.00025479,2]
[312208386,1705685458914,-500.0,0.00025479,2]
[312208387,1705685458924,-454.18800537,0.00025479,2]
[312208388,1705685458935,-45.81199463,0.00025479,2]
[312208389,1705685458945,-500.0,0.00025479,2]
[312208390,1705685458955,-293.39,0.00025479,2]
[312208391,1705685458965,-500.0,0.00025479,2]
[312208392,1705685458974,-500.0,0.00025479,2]
[312208393,1705685458984,-236.47,0.00025479,2]
[312208394,1705685458994,-500.0,0.00025479,2]
[312208395,1705685459003,-626.72,0.00025479,2]
[312208396,1705685459014,-500.0,0.00025479,2]
[312208397,1705685459023,-617.61,0.00025479,2]
[312208398,1705685459033,-500.0,0.00025479,2]
[312208399,1705685459042,-500.0,0.00025479,2]
[312208400,1705685459052,-500.0,0.00025479,2]
[312208401,1705685459061,-128.34174139,0.00025479,2]
[312208402,1705685459082,-426.0,0.00024045,2]
[312208403,1705685459091,-21.256026,0.00025479,2]
[312208404,1705685459103,-350.40223261,0.00025479,2]
[312208405,1705685459112,-500.0,0.00025479,2]
[312208406,1705685459122,-500.0,0.00025479,2]
[312208407,1705685459131,-261.61986655,0.00025479,2]
[312208408,1705685459147,-238.38013345,0.00025479,2]
[312208409,1705685459157,-226.46,0.00025479,2]
[312208410,1705685459166,-607.81,0.00025479,2]
[312208411,1705685459176,-500.0,0.00025479,2]
[312208412,1705685459185,-500.0,0.00025479,2]
[312208413,1705685459194,-327.6389151,0.00025479,2]
[312208414,1705685459204,-500.0,0.00025479,2]
[312208415,1705685459214,-500.0,0.00025479,2]
[312208416,1705685459224,-500.0,0.00025479,2]
[312208417,1705685459234,-500.0,0.00025479,2]
[312208418,1705685459244,-500.0,0.00025479,2]
[312208419,1705685459254,-460.9,0.00025479,2]
[312208420,1705685459265,-500.0,0.00025479,2]
[312208421,1705685459275,-500.0,0.00025479,2]
[312208422,1705685459283,-500.0,0.00025479,2]
[312208423,1705685459293,-1938.43,0.00025479,2]
[312208424,1705685459303,-463.13,0.00025479,2]
[312208425,1705685459313,-1762.79,0.00025479,2]
[312208426,1705685459323,-500.0,0.00025479,2]
[312208427,1705685459332,-348.24,0.00025479,2]
[312208428,1705685459343,-500.0,0.00025479,2]
[312208429,1705685459352,-295.3,0.00025479,2]
[312208430,1705685459361,-335.69429395,0.00025479,2]
[312208431,1705685459379,-155.0,0.00024657,2]
[312208432,1705685459388,-164.30570605,0.00025479,2]
[312208433,1705685459397,-2554.90714304,0.00025479,2]
[312208434,1705685459409,-293.51421104,0.00025479,2]
[312208435,1705685459424,-395.68956715,0.00025479,2]
[312208436,1705685459515,-100.01006137,0.00025479,2]
[312208437,1705685459785,-997.0,0.00024214,2]
[312208438,1705685459795,-299.14478647,0.00024657,2]
[312208439,1705685459812,-200.85521353,0.00024657,2]
[312208440,1705685459822,-500.0,0.00024657,2]
[312208441,1705685459831,-242.77487187,0.00024657,2]
[312208442,1705685459857,-281.28534164,0.00024409,2]
[312208443,1705685459870,-257.22512813,0.00024657,2]
[312208444,1705685459880,-500.0,0.00024657,2]
[312208445,1705685459889,-500.0,0.00024657,2]
[312208446,1705685459899,-500.0,0.00024657,2]
[312208447,1705685459908,-500.0,0.00024931,2]
[312208448,1705685459918,-500.0,0.00024931,2]
[312208449,1705685459927,-159.36,0.00024931,2]
[312208450,1705685459937,-500.0,0.00024931,2]
[312208451,1705685459946,-500.0,0.00025205,2]
[312208452,1705685459955,-3000.45708903,0.00025479,2]
[312208453,1705685459967,-277.00956143,0.00025479,2]
[312208454,1705685459979,-469.302,0.00025479,2]
[312208455,1705685459991,-4214.19036694,0.00025479,2]
[312208456,1705685460001,-500.0,0.00025479,2]
[312208457,1705685460011,-887.45,0.00025479,2]
[312208458,1705685460021,-500.0,0.00025479,2]
[312208459,1705685460031,-500.0,0.00025479,2]
[312208460,1705685460040,-536.32,0.00025479,2]
[312208461,1705685460051,-500.0,0.00025479,2]
[312208462,1705685460061,-1105.03,0.00025479,2]
[312208463,1705685460071,-500.0,0.00025479,2]
[312208464,1705685460081,-500.0,0.00025479,2]
[312208465,1705685460091,-500.0,0.00025479,2]
[312208466,1705685460101,-500.0,0.00025479,2]
[312208467,1705685460110,-500.0,0.00025479,5]
[312208468,1705685460120,-1248.71,0.00025479,2]
[312208469,1705685460130,-500.0,0.00025479,2]
[312208470,1705685460140,-500.0,0.00025479,2]
[312208471,1705685460149,-500.0,0.00025479,2]
[312208472,1705685460159,-500.0,0.00025479,2]
[312208473,1705685460168,-500.0,0.00025479,2]
[312208474,1705685460178,-500.0,0.00025479,2]
[312208475,1705685460188,-505.47,0.00025479,2]
[312208476,1705685460201,-529.72,0.00025479,2]
[312208477,1705685460210,-500.0,0.00025479,2]
[312208478,1705685460220,-500.0,0.00025479,2]
[312208479,1705685460230,-500.0,0.00025479,2]
[312208480,1705685460239,-2721.34,0.00025479,2]
[312208481,1705685460250,-2319.54,0.00025479,2]
[312208482,1705685460261,-500.0,0.00025479,2]
[312208483,1705685460270,-512.64,0.00025479,2]
[312208484,1705685460280,-500.0,0.00025479,2]
[312208485,1705685460289,-500.0,0.00025479,2]
[312208486,1705685460299,-1004.64,0.00025479,2]
[312208487,1705685460308,-500.0,0.00025479,2]
[312208488,1705685460318,-2057.73,0.00025479,2]
[312208489,1705685460328,-500.0,0.00025479,2]
[312208490,1705685460338,-500.0,0.00025479,2]
[312208491,1705685460348,-500.0,0.00025479,2]
[312208492,1705685460358,-556.82,0.00025479,2]
[312208493,1705685460368,-500.0,0.00025479,2]
[312208494,1705685460378,-500.0,0.00025479,2]
[312208495,1705685460387,-500.0,0.00025479,2]
[312208496,1705685460396,-500.0,0.00025479,2]
[312208497,1705685460406,-500.0,0.00025479,2]
[312208498,1705685460415,-500.0,0.00025479,2]
[312208499,1705685460424,-500.0,0.00025479,2]
[312208500,1705685460433,-877.96,0.00025479,2]
[312208501,1705685460444,-500.0,0.00025479,2]
[312208502,1705685460458,-500.0,0.00025479,2]
[312208503,1705685460468,-500.0,0.00025479,2]
[312208504,1705685460479,-370.19,0.00025479,2]
[312208505,1705685460488,-1669.31,0.00025479,2]
[312208506,1705685460498,-500.0,0.00025479,2]
[312208507,1705685460508,-500.0,0.00025479,2]
[312208508,1705685460518,-757.92,0.00025479,2]
[312208509,1705685460528,-500.0,0.00025479,2]
[312208510,1705685460537,-770.03,0.00025479,2]
[312208511,1705685460546,-500.0,0.00025479,2]
[312208512,1705685460554,-500.0,0.00025479,2]
[312208513,1705685460565,-500.0,0.00025479,2]
[312208514,1705685460574,-440.74,0.00025479,2]
[312208515,1705685460583,-476.5,0.00025479,2]
[312208516,1705685460593,-500.0,0.00025479,2]
[312208517,1705685460603,-500.0,0.00025479,2]
[312208518,1705685460613,-500.0,0.00025479,2]
[312208519,1705685460622,-707.43,0.00025479,2]
[312208520,1705685460632,-493.46,0.00025479,2]
[312208521,1705685460644,-609.97,0.00025479,2]
[312208522,1705685460654,-852.84,0.00025479,2]
[312208523,1705685460664,-622.55,0.00025479,2]
[312208524,1705685460673,-500.0,0.00025479,2]
[312208525,1705685460683,-500.0,0.00025479,5]
[312208526,1705685460692,-500.0,0.00025479,2]
[312208527,1705685460701,-500.0,0.00025479,2]
[312208528,1705685460711,-500.0,0.00025479,2]
[312208529,1705685460720,-214.75,0.00025479,2]
[312208530,1705685460729,-500.0,0.00025479,2]
[312208531,1705685460738,-6.74963308,0.00025479,2]
[312208532,1705685460760,-493.25036692,0.00025479,2]
[312208533,1705685460770,-500.0,0.00025479,2]
[312208534,1705685460779,-500.0,0.00025479,2]
[312208535,1705685460789,-263.6320547,0.00025479,2]
[312208536,1705685481866,156.65,0.00020411,2]
[312208537,1705685482098,156.65,0.00020575,2]
[312208538,1705685482503,156.65,0.00020738,2]
[312208539,1705685482727,30.05,0.00020901,2]
[312208540,1705685512854,-126.6,0.00020901,2]
[312208541,1705685519007,-500.0,0.00020943,2]
[312208542,1705685523186,-216.12,0.00020943,2]
[312208543,1705685552616,-500.0,0.00020951,2]
[312208544,1705685563009,212.56,0.00020411,2]
[312208545,1705685646544,-198.04764279,0.00020951,2]
[312208546,1705685663653,-500.0,0.00020951,2]
[312208547,1705685684819,500.0,0.0002095,2]
[312208548,1705685684845,301.95235721,0.0002095,2]
[312208549,1705685684871,71.32,0.0002095,2]
[312208550,1705685684896,500.0,0.0002095,2]
[312208551,1705685684921,500.0,0.0002095,2]
[312208552,1705685684945,500.0,0.0002095,2]
[312208557,1705685793829,203.0,0.00019952,2]
[312208558,1705685810146,170.4,0.00020848,2]
[312208559,1705685810169,500.0,0.00020848,2]
[312208560,1705685810195,394.5373,0.00020848,2]
[312208561,1705685819368,105.4627,0.00020848,2]
[312208572,1705685893267,-247.18324374,0.00020845,2]
[312208573,1705685893293,-252.81675626,0.00020846,2]
[312208574,1705685899542,-445.23088653,0.00020846,2]
[312208575,1705685901032,54.76911347,0.00020845,2]
[312208576,1705685907131,-500.0,0.00020845,2]
[312208577,1705686109728,500.0,0.00019879,2]
[312208578,1705686109754,22.72,0.00019879,2]
[312208579,1705686244427,-247.18324374,0.00020746,2]
[312208580,1705686258261,-158.83593676,0.00020747,2]
[312208581,1705686337025,179.76886258,0.00020391,2]
[312208588,1705686580436,161.39520066,0.00019865,2]
[312208589,1705686580464,252.81675626,0.00019865,2]
[312208590,1705686580489,106.66804308,0.00019865,2]
[312208606,1705686634088,-247.18324374,0.00020842,2]
[312208607,1705686634098,-70.83180271,0.00020843,2]
[312208608,1705686634108,-229.16819729,0.00020843,2]
[312208609,1705686634117,-111.15779871,0.00020843,2]
[312208610,1705686634153,-105.33142062,0.00020843,2]
[312208611,1705686634162,-216.48921933,0.00020843,2]
[312208612,1705686634171,-680.30740562,0.00020844,2]
[312208613,1705686634317,-49.31259438,0.00020844,2]
[312208614,1705686634326,-216.48921933,0.00020844,2]
[312208615,1705686634335,-309.3752948,0.00020844,2]
[312208616,1705686634346,-440.06437288,0.00020844,2]
[312208617,1705686634370,-351.48000001,0.00020844,2]
[312208646,1705686639522,-1518.198,0.00020844,2]
[312208649,1705686639536,-8211.50263172,0.00020844,2]
[312208651,1705686639545,-735.65,0.00020847,2]
[312208653,1705686639554,-713.89,0.00020847,2]
[312208655,1705686639564,-730.16,0.00020847,2]
[312208657,1705686639573,-611.5873,0.00020848,2]
[312208659,1705686639583,-722.62,0.00020947,2]
[312208661,1705686639592,-5745.3,0.00020947,2]
[312208663,1705686639601,-7462.24,0.00020947,2]
[312208665,1705686639610,-2716.12,0.00020947,2]
[312208667,1705686639620,-499.99,0.00020947,2]
[312208669,1705686639629,-718.92,0.00020948,2]
[312208671,1705686639638,-732.16,0.00020948,2]
[312208673,1705686639647,-728.08,0.00020948,2]
[312208674,1705686639656,-718.38,0.00020949,2]
[312208675,1705686639666,-716.4,0.0002095,2]
[312208676,1705686639675,-210.07,0.00020951,2]
[312208677,1705686639684,-738.14,0.00020951,2]
[312208678,1705686639693,-722.66,0.00020951,2]
[312208679,1705686639703,-711.21,0.00020951,2]
[312208680,1705686639712,-709.66,0.00020951,2]
[312208681,1705686639722,-727.85,0.00020951,2]
[312208682,1705686639731,-710.88,0.00020951,2]
[312208683,1705686639740,-156.65,0.00021064,2]
[312208684,1705686639751,-156.65,0.00021228,2]
[312208685,1705686639760,-156.65,0.00021391,2]
[312208686,1705686639769,-156.65,0.00021554,2]
[312208687,1705686639779,-203.0,0.00021592,2]
[312208688,1705686639788,-393.35853301,0.00021615,5]
[312208689,1705686639797,-156.65,0.00021718,2]
[312208690,1705686639806,-190.97,0.0002174,2]
[312208691,1705686639816,-159.8,0.00021756,2]
[312208692,1705686639825,-250.0,0.00021777,2]
[312208693,1705686639834,-160.09,0.00021787,2]
[312208694,1705686639843,-13939.08,0.00021796,2]
[312208695,1705686639852,-2000.0,0.00021796,2]
[312208696,1705686639861,-150.4,0.00021796,2]
[312208697,1705686639871,-200.0,0.00021801,2]
[312208698,1705686639882,-156.65,0.00021881,2]
[312208699,1705686639891,-250.0,0.000219,2]
[312208700,1705686639901,-250.0,0.00021918,2]
[312208701,1705686639911,-266.62,0.0002196,2]
[312208702,1705686639921,-550.0,0.00022,3]
[312208703,1705686639934,-266.62,0.0002202,2]
[312208704,1705686639943,-156.65,0.00022044,2]
[312208705,1705686639952,-266.62,0.0002208,2]
[312208706,1705686639962,-520.88,0.00022129,2]
[312208707,1705686639971,-266.62,0.00022141,2]
[312208708,1705686639981,-266.62,0.00022201,2]
[312208709,1705686639990,-156.65,0.00022208,2]
[312208710,1705686640001,-266.62,0.00022261,2]
[312208711,1705686640010,-266.62,0.00022321,2]
[312208713,1705686640020,-156.65,0.00022371,2]
[312208715,1705686640029,-266.62,0.00022381,2]
[312208717,1705686640038,-266.62,0.00022442,2]
[312208719,1705686640047,-266.62,0.00022502,2]
[312208721,1705686640057,-156.65,0.00022534,2]
[312208723,1705686640067,-266.62,0.00022562,2]
[312208725,1705686640076,-150.4,0.00022603,2]
[312208728,1705686640086,-266.62,0.00022622,2]
[312208730,1705686640094,-2244.57556426,0.00022628,2]
[312208731,1705686640103,-300.0,0.00022676,2]
[312208733,1705686640113,-266.62,0.00022682,2]
[312208736,1705686640122,-156.65,0.00022697,2]
[312208738,1705686640131,-272.21882599,0.00022701,2]
[312208740,1705686640140,-266.62,0.00022743,2]
[312208742,1705686640150,-155.0,0.00022766,2]
[312208744,1705686640159,-266.62,0.00022803,2]
[312208746,1705686640168,-156.92,0.0002281,2]
[312208748,1705686640177,-156.65,0.00022861,2]
[312208750,1705686640186,-266.62,0.00022863,2]
[312208752,1705686640195,-266.62,0.00022923,2]
[312208753,1705686640204,-266.62,0.00022984,2]
[312208755,1705686640213,-177.55221502,0.00023,20]
[312208800,1705686640570,-830.55949811,0.00023,20]
[312208802,1705686640580,-182.46,0.00023,2]
[312208803,1705686640589,-266.62,0.00023044,2]
[312208806,1705686640598,-266.62,0.00023104,2]
[312208808,1705686640606,-160.09,0.00023157,2]
[312208810,1705686640615,-552.42897189,0.00023192,2]
[312208812,1705686640627,-177.81102811,0.00023192,2]
[312208814,1705686640636,-488.79095646,0.00023287,2]
[312208816,1705686640644,-5006.0,0.00023288,4]
[312208818,1705686640653,-171.86245233,0.00023328,2]
[312208819,1705686640662,-1000.0,0.0002333,2]
[312208821,1705686640671,-164.42,0.0002333,2]
[312208823,1705686640680,-212.56,0.0002333,2]
[312208825,1705686640689,-178.97,0.0002333,2]
[312208827,1705686640698,-150.4,0.00023409,2]
[312208830,1705686640707,-164.42,0.00023641,2]
[312208832,1705686640716,-156.92,0.00023668,2]
[312208833,1705686640725,-417.40989288,0.0002367,2]
[312208835,1705686640733,-180.0,0.00023921,2]
[312208838,1705686640743,-997.6485834,0.00023932,3]
[312208841,1705686640752,-621.33628027,0.00023932,2]
[312208843,1705686640761,-256.96,0.0002394,2]
[312208845,1705686640770,-164.42,0.00023952,2]
[312208847,1705686640779,-431.59040182,0.00024,2]
[312208848,1705686640788,-201.16205573,0.00024,2]
[312208850,1705686640797,-600.0,0.00024,3]
[312208852,1705686640806,-155.71538539,0.00024044,2]
[312208854,1705686640815,-256.96,0.00024077,2]
[312208856,1705686640824,-256.70459311,0.0002421,10]
[312208858,1705686640834,-256.96,0.00024214,2]
[312208860,1705686640842,-150.4,0.00024216,2]
[312208862,1705686640851,-164.42,0.00024263,2]
[312208864,1705686640860,-214.0,0.00024296,2]
[312208888,1705686640872,-997.0,0.00024296,2]
[312208890,1705686641122,-426.0,0.00024296,2]
[312208892,1705686641131,-235.0,0.00024296,2]
[312208894,1705686641140,-2274.0,0.00024296,2]
[312208896,1705686641149,-250.0,0.00024296,2]
[312208898,1705686641157,-153.255,0.00024296,2]
[312208899,1705686641166,-150.0,0.00024296,2]
[312208901,1705686641175,-157.083,0.00024296,2]
[312208903,1705686641183,-150.258,0.00024296,2]
[312208905,1705686641192,-150.0,0.00024296,2]
[312208907,1705686641201,-162.808,0.00024296,2]
[312208909,1705686641209,-259.65,0.00024296,2]
[312208911,1705686641218,-206.666,0.00024296,2]
[312208913,1705686641227,-167.0,0.00024297,2]
[312208915,1705686641236,-256.96,0.00024351,2]
[312208917,1705686641245,-520.88,0.00024393,2]
[312208918,1705686641255,-179.49540527,0.00024408,2]
[312208920,1705686641265,-155.0,0.00024409,2]
[312208922,1705686641274,-1081.74804082,0.00024432,2]
[312208924,1705686641283,-2500.0,0.00024457,2]
[312208926,1705686641292,-151.9905901,0.00024457,2]
[312208928,1705686641302,-511.09,0.00024488,2]
[312208930,1705686641311,-156.92,0.00024526,2]
[312208932,1705686641320,-160.09,0.00024527,2]
[312208934,1705686641329,-209.0,0.00024557,2]
[312208936,1705686641338,-12975.8128,0.00024557,2]
[312208938,1705686641347,-100000.0,0.00024557,2]
[312208940,1705686641356,-1352.80805555,0.00024557,2]
[312208941,1705686641366,-164.42,0.00024574,2]
[312208943,1705686641375,-1109.53932324,0.00024655,2]
[312208945,1705686641384,-1198.3764781,0.00024655,2]
[312208947,1705686641393,-155.0,0.00024655,2]
[312208949,1705686641403,-173.25884816,0.00024655,2]
[312208951,1705686641412,-180.09491239,0.00024656,2]
[312208953,1705686641421,-2860.90387402,0.00024656,2]
[312208955,1705686641430,-371.15962209,0.00024656,2]
[312208957,1705686641439,-423.63766988,0.00024656,2]
[312208959,1705686641449,-500.0,0.00024657,2]
[312208961,1705686641458,-500.0,0.00024657,2]
[312208963,1705686641468,-500.0,0.00024657,2]
[312208965,1705686641477,-500.0,0.00024657,2]
[312208967,1705686641489,-500.0,0.00024657,2]
[312208969,1705686641499,-500.0,0.00024657,2]
[312208971,1705686641509,-221.06,0.00024657,2]
[312208973,1705686641518,-500.0,0.00024657,2]
[312208975,1705686641527,-603.11,0.00024657,2]
[312208977,1705686641536,-500.0,0.00024657,2]
[312208979,1705686641546,-500.0,0.00024657,2]
[312208981,1705686641555,-500.0,0.00024657,2]
[312208983,1705686641564,-500.0,0.00024657,2]
[312208984,1705686641572,-500.0,0.00024657,2]
[312208986,1705686641581,-500.0,0.00024657,2]
[312208988,1705686641591,-500.0,0.00024657,2]
[312208990,1705686641599,-500.0,0.00024657,2]
[312208992,1705686641608,-420.85,0.00024657,2]
[312208994,1705686641617,-500.0,0.00024657,2]
[312208996,1705686641626,-500.0,0.00024657,2]
[312208998,1705686641634,-500.0,0.00024657,2]
[312208999,1705686641643,-500.0,0.00024657,2]
[312209000,1705686641652,-500.0,0.00024657,2]
[312209001,1705686641661,-213.14,0.00024657,2]
[312209002,1705686641671,-500.0,0.00024657,2]
[312209003,1705686641680,-539.36,0.00024657,2]
[312209004,1705686641688,-500.0,0.00024657,2]
[312209005,1705686641699,-514.47,0.00024657,2]
[312209006,1705686641708,-500.0,0.00024657,2]
[312209007,1705686641716,-500.0,0.00024657,2]
[312209008,1705686641726,-200.54134064,0.00024657,2]
[312209009,1705686641734,-500.0,0.00024657,2]
[312209010,1705686641743,-500.0,0.00024657,2]
[312209011,1705686641755,-500.0,0.00024657,2]
[312209013,1705686641764,-500.0,0.00024657,2]
[312209015,1705686641773,-371.91,0.00024657,2]
[312209017,1705686641781,-500.0,0.00024657,2]
[312209019,1705686641790,-500.0,0.00024657,2]
[312209021,1705686641799,-170.13,0.00024657,2]
[312209023,1705686641808,-500.0,0.00024657,2]
[312209025,1705686641817,-500.0,0.00024657,2]
[312209027,1705686641827,-500.0,0.00024657,2]
[312209029,1705686641836,-500.0,0.00024657,2]
[312209031,1705686641846,-500.0,0.00024657,2]
[312209033,1705686641855,-500.0,0.00024657,2]
[312209035,1705686641864,-500.0,0.00024657,2]
[312209037,1705686641872,-500.0,0.00024657,2]
[312209039,1705686641881,-500.0,0.00024657,2]
[312209041,1705686641895,-500.0,0.00024657,2]
[312209043,1705686641903,-500.0,0.00024657,2]
[312209045,1705686641912,-500.0,0.00024657,2]
[312209048,1705686641922,-500.0,0.00024657,2]
[312209050,1705686641932,-500.0,0.00024657,2]
[312209052,1705686641941,-500.0,0.00024657,2]
[312209054,1705686641950,-500.0,0.00024657,2]
[312209056,1705686641958,-555.29,0.00024657,2]
[312209058,1705686641968,-500.0,0.00024657,2]
[312209060,1705686641977,-500.0,0.00024657,2]
[312209062,1705686641985,-500.0,0.00024657,2]
[312209064,1705686641994,-500.0,0.00024657,2]
[312209066,1705686642005,-500.0,0.00024657,2]
[312209067,1705686642013,-500.0,0.00024657,2]
[312209069,1705686642022,-500.0,0.00024657,2]
[312209071,1705686642031,-500.0,0.00024657,2]
[312209073,1705686642039,-500.0,0.00024657,2]
[312209075,1705686642048,-500.0,0.00024657,2]
[312209077,1705686642058,-500.0,0.00024657,2]
[312209080,1705686642067,-500.0,0.00024657,2]
[312209082,1705686642076,-500.0,0.00024657,2]
[312209084,1705686642085,-500.0,0.00024657,2]
[312209086,1705686642094,-500.0,0.00024657,2]
[312209088,1705686642102,-500.0,0.00024657,2]
[312209090,1705686642111,-500.0,0.00024657,2]
[312209092,1705686642120,-500.0,0.00024657,2]
[312209094,1705686642128,-500.0,0.00024657,2]
[312209096,1705686642137,-161.49241399,0.00024657,2]
[312209098,1705686642146,-500.0,0.00024657,2]
[312209100,1705686642154,-517.21991379,0.00024657,2]
[312209102,1705686642163,-500.0,0.00024657,2]
[312209104,1705686642172,-500.0,0.00024657,2]
[312209106,1705686642180,-500.0,0.00024657,2]
[312209107,1705686642189,-500.0,0.00024657,2]
[312209109,1705686642198,-500.0,0.00024657,2]
[312209111,1705686642207,-500.0,0.00024657,2]
[312209113,1705686642216,-500.0,0.00024657,2]
[312209115,1705686642224,-500.0,0.00024657,2]
[312209117,1705686642233,-500.0,0.00024657,2]
[312209119,1705686642242,-500.0,0.00024657,2]
[312209121,1705686642252,-500.0,0.00024657,2]
[312209123,1705686642260,-500.0,0.00024657,2]
[312209125,1705686642269,-500.0,0.00024657,2]
[312209127,1705686642278,-500.0,0.00024657,2]
[312209129,1705686642287,-500.0,0.00024657,2]